[Event "Live Chess"]
[Site "Chess.com"]
[Date "2023.05.21"]
[Round "-"]
[White "lord_cll"]
[Black "davidlightfoot"]
[Result "1-0"]
[WhiteElo "1209"]
[BlackElo "680"]
[TimeControl "300"]
[EndTime "7:36:43 PDT"]
[Termination "lord_cll won by checkmate"]

1. e4 {[%clk 0:04:58.4]} 1... c5 {[%clk 0:04:58.6]} 2. c3 {[%clk 0:04:56.1]}
2... e6 {[%clk 0:04:56.9]} 3. e5 {[%clk 0:04:52.4]} 3... Nc6 {[%clk 0:04:55.5]}
4. d4 {[%clk 0:04:50.3]} 4... cxd4 {[%clk 0:04:48.6]} 5. cxd4 {[%clk 0:04:49.3]}
5... Qa5+ {[%clk 0:04:47.1]} 6. Nc3 {[%clk 0:04:31.3]} 6... Bb4 {[%clk
0:04:41.4]} 7. Ne2 {[%clk 0:04:15.2]} 7... Bxc3+ {[%clk 0:04:38.8]} 8. Nxc3
{[%clk 0:04:11.7]} 8... Nge7 {[%clk 0:04:26.4]} 9. Be3 {[%clk 0:04:08.1]} 9...
O-O {[%clk 0:04:19.4]} 10. Be2 {[%clk 0:04:00.2]} 10... f6 {[%clk 0:04:14.3]}
11. exf6 {[%clk 0:03:48.8]} 11... Rxf6 {[%clk 0:04:04.9]} 12. O-O {[%clk
0:03:45.6]} 12... Nd5 {[%clk 0:03:54.6]} 13. Ne4 {[%clk 0:03:33.3]} 13... Nc7
{[%clk 0:03:45.7]} 14. Nxf6+ {[%clk 0:03:31.8]} 14... gxf6 {[%clk 0:03:43.1]}
15. a3 {[%clk 0:03:11.8]} 15... b6 {[%clk 0:03:39.5]} 16. b4 {[%clk 0:03:09.9]}
16... Qd5 {[%clk 0:03:34.9]} 17. Bf3 {[%clk 0:03:01.7]} 17... Qc4 {[%clk
0:03:26]} 18. Rc1 {[%clk 0:02:53.2]} 18... Qa2 {[%clk 0:03:17.3]} 19. b5 {[%clk
0:02:42.9]} 19... Na5 {[%clk 0:03:09.7]} 20. Bxa8 {[%clk 0:02:39.8]} 20... Qxa3
{[%clk 0:03:03.3]} 21. Bd2 {[%clk 0:02:27.7]} 21... Nb3 {[%clk 0:02:53.3]} 22.
Rxc7 {[%clk 0:02:17.5]} 22... Nxd4 {[%clk 0:02:45.4]} 23. Qg4+ {[%clk
0:02:11.8]} 23... Kf7 {[%clk 0:02:38.7]} 24. Qxd4 {[%clk 0:02:06.1]} 24... Qf8
{[%clk 0:02:22]} 25. Bc6 {[%clk 0:02:00]} 25... e5 {[%clk 0:02:17.8]} 26. Qg4
{[%clk 0:01:47.5]} 26... Qc5 {[%clk 0:02:09.8]} 27. Be3 {[%clk 0:01:32.4]} 27...
Qe7 {[%clk 0:01:55.6]} 28. Bxd7 {[%clk 0:01:27.2]} 28... Bxd7 {[%clk 0:01:53.2]}
29. Rxd7 {[%clk 0:01:25.8]} 29... Qxd7 {[%clk 0:01:47.2]} 30. Qxd7+ {[%clk
0:01:25.7]} 30... Kg6 {[%clk 0:01:45.9]} 31. Qxa7 {[%clk 0:01:22.5]} 31... h5
{[%clk 0:01:43.8]} 32. Qxb6 {[%clk 0:01:21.1]} 32... e4 {[%clk 0:01:42.6]} 33.
Qc7 {[%clk 0:01:16.4]} 33... h4 {[%clk 0:01:41.4]} 34. Qf4 {[%clk 0:01:11.7]}
34... f5 {[%clk 0:01:39.3]} 35. Qg5+ {[%clk 0:01:09.4]} 35... Kf7 {[%clk
0:01:36]} 36. Qxh4 {[%clk 0:01:07]} 36... f4 {[%clk 0:01:34]} 37. Bxf4 {[%clk
0:01:04]} 37... Ke6 {[%clk 0:01:30]} 38. Qg5 {[%clk 0:01:01.7]} 38... Kd7 {[%clk
0:01:28.8]} 39. b6 {[%clk 0:00:56.6]} 39... Kc6 {[%clk 0:01:26]} 40. Be3 {[%clk
0:00:47.2]} 40... Kb7 {[%clk 0:01:24.1]} 41. Qe7+ {[%clk 0:00:45.2]} 41... Kb8
{[%clk 0:01:21.8]} 42. Qc7+ {[%clk 0:00:37.3]} 42... Ka8 {[%clk 0:01:20.5]} 43.
Qa7# {[%clk 0:00:36.5]} 1-0

[Event "Live Chess"]
[Site "Chess.com"]
[Date "2023.05.21"]
[Round "-"]
[White "MarkCheck"]
[Black "ClassyChameleon"]
[Result "0-1"]
[WhiteElo "1560"]
[BlackElo "1095"]
[TimeControl "300"]
[EndTime "7:36:47 PDT"]
[Termination "ClassyChameleon won on time"]

1. c4 {[%clk 0:04:56.9]} 1... c5 {[%clk 0:04:52.9]} 2. g3 {[%clk 0:04:52.7]}
2... Nc6 {[%clk 0:04:51.1]} 3. Bg2 {[%clk 0:04:52.2]} 3... Nf6 {[%clk
0:04:48.5]} 4. Nc3 {[%clk 0:04:51.4]} 4... e5 {[%clk 0:04:47.4]} 5. d3 {[%clk
0:04:43.4]} 5... d5 {[%clk 0:04:46]} 6. cxd5 {[%clk 0:04:36.1]} 6... Nd4 {[%clk
0:04:45]} 7. e3 {[%clk 0:04:27.8]} 7... Nf5 {[%clk 0:04:38.4]} 8. Nge2 {[%clk
0:04:08.4]} 8... Bd6 {[%clk 0:04:29.5]} 9. O-O {[%clk 0:03:53.5]} 9... O-O
{[%clk 0:03:57.7]} 10. b3 {[%clk 0:03:35.5]} 10... Nh6 {[%clk 0:03:55.3]} 11. h3
{[%clk 0:03:28.9]} 11... g5 {[%clk 0:03:35.5]} 12. Bb2 {[%clk 0:03:22.8]} 12...
Bd7 {[%clk 0:03:26.4]} 13. Ne4 {[%clk 0:03:08.6]} 13... Nxe4 {[%clk 0:03:25]}
14. dxe4 {[%clk 0:03:07.7]} 14... f6 {[%clk 0:03:15]} 15. f4 {[%clk 0:03:02]}
15... gxf4 {[%clk 0:03:12.4]} 16. exf4 {[%clk 0:03:01]} 16... Nf7 {[%clk
0:03:03.6]} 17. f5 {[%clk 0:02:50]} 17... Bb5 {[%clk 0:02:50.4]} 18. a4 {[%clk
0:02:34.1]} 18... Ba6 {[%clk 0:02:42]} 19. Rf2 {[%clk 0:02:31.1]} 19... c4
{[%clk 0:02:15.3]} 20. Kh2 {[%clk 0:02:29.6]} 20... cxb3 {[%clk 0:02:08.3]} 21.
Qxb3 {[%clk 0:02:23.5]} 21... Qc7 {[%clk 0:01:38.7]} 22. Rc1 {[%clk 0:02:20.4]}
22... Qa5 {[%clk 0:01:37]} 23. Nc3 {[%clk 0:01:52.3]} 23... Rac8 {[%clk
0:01:24.2]} 24. Nb5 {[%clk 0:01:46.3]} 24... Rxc1 {[%clk 0:01:17.1]} 25. Bxc1
{[%clk 0:01:45]} 25... Bxb5 {[%clk 0:01:14.1]} 26. axb5 {[%clk 0:01:27.7]} 26...
a6 {[%clk 0:01:07.2]} 27. bxa6 {[%clk 0:01:24.9]} 27... bxa6 {[%clk 0:01:06.7]}
28. Bd2 {[%clk 0:01:18.4]} 28... Qc5 {[%clk 0:00:57.1]} 29. Be3 {[%clk
0:01:06.1]} 29... Qb5 {[%clk 0:00:51.6]} 30. Qxb5 {[%clk 0:00:35.8]} 30... axb5
{[%clk 0:00:50.3]} 31. Rb2 {[%clk 0:00:35.4]} 31... b4 {[%clk 0:00:49.3]} 32.
Bd2 {[%clk 0:00:29.3]} 32... Rb8 {[%clk 0:00:48.1]} 33. Bf1 {[%clk 0:00:26.4]}
33... Ng5 {[%clk 0:00:46.5]} 34. Bxg5 {[%clk 0:00:18.3]} 34... fxg5 {[%clk
0:00:45.7]} 35. g4 {[%clk 0:00:16.6]} 35... Kf7 {[%clk 0:00:44.7]} 36. Kg2
{[%clk 0:00:14.7]} 36... b3 {[%clk 0:00:42.2]} 37. Bc4 {[%clk 0:00:13]} 37...
Ba3 {[%clk 0:00:40.8]} 38. Rxb3 {[%clk 0:00:11.8]} 38... Rxb3 {[%clk 0:00:39.8]}
39. Bxb3 {[%clk 0:00:11.7]} 39... Bb2 {[%clk 0:00:39.1]} 40. Kf3 {[%clk
0:00:11.6]} 40... Bd4 {[%clk 0:00:37.5]} 41. Ke2 {[%clk 0:00:11.2]} 41... Kf6
{[%clk 0:00:36.9]} 42. Kd3 {[%clk 0:00:10.4]} 42... h6 {[%clk 0:00:36.1]} 43.
Kc4 {[%clk 0:00:09.2]} 43... h5 {[%clk 0:00:35.2]} 44. Ba4 {[%clk 0:00:09.1]}
44... hxg4 {[%clk 0:00:33.5]} 45. hxg4 {[%clk 0:00:09]} 45... Kf7 {[%clk
0:00:31.9]} 46. Bb5 {[%clk 0:00:08.5]} 46... Kf6 {[%clk 0:00:31.3]} 47. Bc6
{[%clk 0:00:08]} 47... Ke7 {[%clk 0:00:30.1]} 48. Kb5 {[%clk 0:00:07.9]} 48...
Kd6 {[%clk 0:00:29.1]} 49. Ka6 {[%clk 0:00:06.8]} 49... Kc5 {[%clk 0:00:27.8]}
50. Kb7 {[%clk 0:00:05.8]} 50... Kc4 {[%clk 0:00:27.2]} 51. d6 {[%clk
0:00:05.3]} 51... Kd3 {[%clk 0:00:26.9]} 52. d7 {[%clk 0:00:04.8]} 52... Ke3
{[%clk 0:00:23.5]} 53. d8=Q {[%clk 0:00:04]} 53... Kf4 {[%clk 0:00:23.2]} 54.
Qf6 {[%clk 0:00:02.4]} 54... Kxg4 {[%clk 0:00:21.9]} 55. Qg6 {[%clk 0:00:01.6]}
55... Kf4 {[%clk 0:00:21]} 56. Bd7 {[%clk 0:00:00.6]} 56... g4 {[%clk
0:00:19.7]} 0-1

[Event "Live Chess"]
[Site "Chess.com"]
[Date "2023.05.21"]
[Round "-"]
[White "grillage"]
[Black "ramses-IIG"]
[Result "1-0"]
[WhiteElo "1785"]
[BlackElo "870"]
[TimeControl "300"]
[EndTime "7:36:47 PDT"]
[Termination "grillage won by checkmate"]

1. d4 {[%clk 0:04:59.4]} 1... d5 {[%clk 0:04:58.6]} 2. Nc3 {[%clk 0:04:55.4]}
2... Bf5 {[%clk 0:04:58.5]} 3. Bf4 {[%clk 0:04:54.2]} 3... c6 {[%clk 0:04:55.4]}
4. e3 {[%clk 0:04:49.7]} 4... e6 {[%clk 0:04:50.2]} 5. Nf3 {[%clk 0:04:48.6]}
5... Bd6 {[%clk 0:04:48.2]} 6. Bd3 {[%clk 0:04:44.5]} 6... Bxf4 {[%clk
0:04:46.4]} 7. exf4 {[%clk 0:04:43.3]} 7... Bg4 {[%clk 0:04:43.2]} 8. h3 {[%clk
0:04:37.8]} 8... Bxf3 {[%clk 0:04:40.1]} 9. Qxf3 {[%clk 0:04:36.7]} 9... Nf6
{[%clk 0:04:37.7]} 10. O-O {[%clk 0:04:32.5]} 10... O-O {[%clk 0:04:31]} 11. g4
{[%clk 0:04:30.9]} 11... Nfd7 {[%clk 0:04:25.7]} 12. g5 {[%clk 0:04:24.8]} 12...
g6 {[%clk 0:04:22.1]} 13. h4 {[%clk 0:04:19.5]} 13... f6 {[%clk 0:04:11.2]} 14.
Qg4 {[%clk 0:04:16]} 14... f5 {[%clk 0:04:09.1]} 15. Qe2 {[%clk 0:04:11.3]}
15... Kg7 {[%clk 0:04:04]} 16. Qxe6 {[%clk 0:04:09.3]} 16... Re8 {[%clk
0:03:56.6]} 17. Qd6 {[%clk 0:04:07.5]} 17... Nb6 {[%clk 0:03:42.2]} 18. Qxd8
{[%clk 0:04:05.3]} 18... Rxd8 {[%clk 0:03:42.1]} 19. Rfe1 {[%clk 0:04:04]} 19...
N8d7 {[%clk 0:03:38.6]} 20. Re7+ {[%clk 0:04:01.1]} 20... Kf8 {[%clk 0:03:35.4]}
21. Rxh7 {[%clk 0:03:55.3]} 21... Kg8 {[%clk 0:03:31.7]} 22. Re7 {[%clk
0:03:53.7]} 22... Nc8 {[%clk 0:03:24.8]} 23. Re6 {[%clk 0:03:50.3]} 23... Kg7
{[%clk 0:03:20.2]} 24. Rae1 {[%clk 0:03:48.9]} 24... Rf8 {[%clk 0:03:14.8]} 25.
Kg2 {[%clk 0:03:43.4]} 25... Ndb6 {[%clk 0:03:12.2]} 26. Na4 {[%clk 0:03:30.8]}
26... Nxa4 {[%clk 0:03:09.2]} 27. b3 {[%clk 0:03:22.8]} 27... Nc3 {[%clk
0:02:59.3]} 28. f3 {[%clk 0:03:12.6]} 28... Nxa2 {[%clk 0:02:52.4]} 29. h5
{[%clk 0:03:08.6]} 29... Nb4 {[%clk 0:02:32.2]} 30. Rxg6+ {[%clk 0:03:05.5]}
30... Kh7 {[%clk 0:02:28.7]} 31. Rh6+ {[%clk 0:03:02.3]} 31... Kg7 {[%clk
0:02:27.4]} 32. Ree6 {[%clk 0:02:58.3]} 32... Nxd3 {[%clk 0:02:19]} 33. cxd3
{[%clk 0:02:57]} 33... Rf7 {[%clk 0:02:06.9]} 34. Reg6+ {[%clk 0:02:53.5]} 34...
Kf8 {[%clk 0:02:04.9]} 35. Rh8+ {[%clk 0:02:49.5]} 35... Ke7 {[%clk 0:02:03.9]}
36. Rgg8 {[%clk 0:02:46]} 36... Kd7 {[%clk 0:01:46.7]} 37. g6 {[%clk 0:02:43.3]}
37... Re7 {[%clk 0:01:42]} 38. h6 {[%clk 0:02:41.7]} 38... Re2+ {[%clk
0:01:40.6]} 39. Kg3 {[%clk 0:02:40.8]} 39... Re3 {[%clk 0:01:36.1]} 40. g7
{[%clk 0:02:35.8]} 40... Rxd3 {[%clk 0:01:35]} 41. Rd8+ {[%clk 0:02:34.4]} 41...
Kc7 {[%clk 0:01:31.3]} 42. g8=Q {[%clk 0:02:32.6]} 42... Rxb3 {[%clk 0:01:28.8]}
43. Rxc8+ {[%clk 0:02:31.7]} 43... Rxc8 {[%clk 0:01:26.8]} 44. Qxc8+ {[%clk
0:02:30.8]} 44... Kb6 {[%clk 0:01:26.7]} 45. Qxf5 {[%clk 0:02:28.1]} 45... Rb4
{[%clk 0:01:24.4]} 46. Rb8 {[%clk 0:02:24.6]} 46... Rxd4 {[%clk 0:01:20.7]} 47.
Qc8 {[%clk 0:02:18.8]} 47... Rc4 {[%clk 0:01:15.4]} 48. Rxb7+ {[%clk 0:02:17.6]}
48... Ka5 {[%clk 0:01:12]} 49. Qc7+ {[%clk 0:02:16.1]} 49... Ka6 {[%clk
0:01:09.5]} 50. Rxa7+ {[%clk 0:02:15.1]} 50... Kb5 {[%clk 0:01:07.9]} 51. Ra5+
{[%clk 0:02:12.1]} 51... Kb4 {[%clk 0:01:07]} 52. Qb6+ {[%clk 0:02:10.7]} 52...
Kc3 {[%clk 0:01:05.9]} 53. Qe3+ {[%clk 0:02:09.5]} 53... Kb4 {[%clk 0:01:03.2]}
54. Qa3# {[%clk 0:02:05.9]} 1-0

[Event "Live Chess"]
[Site "Chess.com"]
[Date "2023.05.21"]
[Round "-"]
[White "WelshTiger"]
[Black "ameetghasi100"]
[Result "1/2-1/2"]
[WhiteElo "2339"]
[BlackElo "2578"]
[TimeControl "300"]
[EndTime "7:36:58 PDT"]
[Termination "Game drawn by repetition"]

1. e4 {[%clk 0:04:56]} 1... c5 {[%clk 0:04:59.9]} 2. Nf3 {[%clk 0:04:53.3]} 2...
Nc6 {[%clk 0:04:58.2]} 3. Bb5 {[%clk 0:04:51.8]} 3... e6 {[%clk 0:04:56.2]} 4.
b3 {[%clk 0:04:50.2]} 4... Nge7 {[%clk 0:04:55.1]} 5. O-O {[%clk 0:04:48.1]}
5... a6 {[%clk 0:04:54.6]} 6. Bxc6 {[%clk 0:04:47.2]} 6... Nxc6 {[%clk
0:04:54.5]} 7. Bb2 {[%clk 0:04:46.7]} 7... d6 {[%clk 0:04:53.6]} 8. d4 {[%clk
0:04:44.4]} 8... cxd4 {[%clk 0:04:52.5]} 9. Nxd4 {[%clk 0:04:44.3]} 9... Bd7
{[%clk 0:04:51.6]} 10. c4 {[%clk 0:04:43.7]} 10... Be7 {[%clk 0:04:48.2]} 11.
Nc3 {[%clk 0:04:42.7]} 11... O-O {[%clk 0:04:46.8]} 12. Nxc6 {[%clk 0:04:38.6]}
12... Bxc6 {[%clk 0:04:46.7]} 13. Qe2 {[%clk 0:04:37.7]} 13... Qa5 {[%clk
0:04:43.3]} 14. Nd5 {[%clk 0:04:19.7]} 14... exd5 {[%clk 0:04:22.3]} 15. exd5
{[%clk 0:04:18.2]} 15... Bxd5 {[%clk 0:04:21.8]} 16. Qxe7 {[%clk 0:04:17.1]}
16... Bc6 {[%clk 0:04:19.6]} 17. Qxd6 {[%clk 0:04:09.6]} 17... Rae8 {[%clk
0:04:01.5]} 18. Qg3 {[%clk 0:04:03.9]} 18... f6 {[%clk 0:03:59.2]} 19. Qc3
{[%clk 0:03:59.3]} 19... Qg5 {[%clk 0:03:49.9]} 20. f3 {[%clk 0:03:54.8]} 20...
Re2 {[%clk 0:03:41.9]} 21. Rf2 {[%clk 0:03:53.7]} 21... Rfe8 {[%clk 0:03:40.5]}
22. Raf1 {[%clk 0:03:48]} 22... Qc5 {[%clk 0:03:10.9]} 23. Qd4 {[%clk
0:03:41.3]} 23... Qf5 {[%clk 0:03:08.5]} 24. h4 {[%clk 0:03:23.3]} 24... R2e7
{[%clk 0:02:44.9]} 25. Rd2 {[%clk 0:02:58.1]} 25... Rd7 {[%clk 0:02:38.8]} 26.
Qf2 {[%clk 0:02:57.3]} 26... Rde7 {[%clk 0:02:37]} 27. Rfd1 {[%clk 0:02:54]}
27... Qa5 {[%clk 0:02:33.5]} 28. Bd4 {[%clk 0:02:49.3]} 28... Qc7 {[%clk
0:02:19.7]} 29. Bc5 {[%clk 0:02:44.2]} 29... Rf7 {[%clk 0:02:17]} 30. Bd6 {[%clk
0:02:43.4]} 30... Qc8 {[%clk 0:02:15.5]} 31. Re1 {[%clk 0:02:37.7]} 31... Rd8
{[%clk 0:02:14.1]} 32. Bg3 {[%clk 0:02:24.3]} 32... h5 {[%clk 0:02:08.9]} 33.
Red1 {[%clk 0:02:22]} 33... Re8 {[%clk 0:02:05.3]} 34. Qc5 {[%clk 0:02:16.5]}
34... g6 {[%clk 0:01:55.6]} 35. Qb6 {[%clk 0:02:10.9]} 35... Qf5 {[%clk
0:01:49.5]} 36. Rd8 {[%clk 0:02:09.1]} 36... Rxd8 {[%clk 0:01:47.7]} 37. Rxd8+
{[%clk 0:02:07.6]} 37... Kg7 {[%clk 0:01:46.7]} 38. Rd2 {[%clk 0:01:56.4]} 38...
Re7 {[%clk 0:01:37.8]} 39. Kh2 {[%clk 0:01:52.4]} 39... g5 {[%clk 0:01:34.2]}
40. Qd4 {[%clk 0:01:48.8]} 40... Rd7 {[%clk 0:01:25.9]} 41. Qe3 {[%clk
0:01:42.4]} 41... Rxd2 {[%clk 0:01:21.1]} 42. Qxd2 {[%clk 0:01:41.4]} 42... g4
{[%clk 0:01:21]} 43. fxg4 {[%clk 0:01:35.4]} 43... Qxg4 {[%clk 0:01:20.9]} 44.
Qe3 {[%clk 0:01:26.5]} 44... Qf5 {[%clk 0:01:15.5]} 45. Qe7+ {[%clk 0:01:17.9]}
45... Kg6 {[%clk 0:01:13.9]} 46. Qe2 {[%clk 0:01:17.5]} 46... Qb1 {[%clk
0:01:09]} 47. Bf4 {[%clk 0:01:12.4]} 47... Be4 {[%clk 0:01:06.4]} 48. Be3 {[%clk
0:01:03.3]} 48... Bf5 {[%clk 0:01:03]} 49. Qf2 {[%clk 0:01:01.8]} 49... Bg4
{[%clk 0:00:57.9]} 50. Qf4 {[%clk 0:01:00.5]} 50... Qxa2 {[%clk 0:00:55]} 51.
Qh6+ {[%clk 0:00:57.1]} 51... Kf5 {[%clk 0:00:53.5]} 52. Qf4+ {[%clk 0:00:56]}
52... Kg6 {[%clk 0:00:52.2]} 53. Qh6+ {[%clk 0:00:52.9]} 53... Kf7 {[%clk
0:00:51.5]} 54. Qh7+ {[%clk 0:00:51.9]} 54... Ke6 {[%clk 0:00:50.6]} 55. Qxb7
{[%clk 0:00:51.5]} 55... Kf5 {[%clk 0:00:44.9]} 56. Qd5+ {[%clk 0:00:50.3]}
56... Kg6 {[%clk 0:00:44.4]} 57. Qg8+ {[%clk 0:00:48.9]} 57... Kf5 {[%clk
0:00:44.1]} 58. Qh7+ {[%clk 0:00:47.8]} 58... Ke6 {[%clk 0:00:40.4]} 59. Qe4+
{[%clk 0:00:45]} 59... Kf7 {[%clk 0:00:38.3]} 60. b4 {[%clk 0:00:43.8]} 60...
Qe2 {[%clk 0:00:35.9]} 61. Qd5+ {[%clk 0:00:42.1]} 61... Kg6 {[%clk 0:00:34.4]}
62. Bf4 {[%clk 0:00:39.4]} 62... Be6 {[%clk 0:00:31.4]} 63. Qd4 {[%clk
0:00:31.5]} 63... Bxc4 {[%clk 0:00:29.2]} 64. Qe3 {[%clk 0:00:26]} 64... Qd1
{[%clk 0:00:27.3]} 65. Qg3+ {[%clk 0:00:25.1]} 65... Kf7 {[%clk 0:00:26.2]} 66.
Bd6 {[%clk 0:00:24.4]} 66... Bd5 {[%clk 0:00:25.5]} 67. Bc5 {[%clk 0:00:23.1]}
67... Qe2 {[%clk 0:00:24.3]} 68. Qc7+ {[%clk 0:00:22.2]} 68... Kg6 {[%clk
0:00:22.3]} 69. Qg3+ {[%clk 0:00:21.8]} 69... Kh7 {[%clk 0:00:21.9]} 70. Qf2
{[%clk 0:00:19.2]} 70... Qe4 {[%clk 0:00:20.7]} 71. Qg3 {[%clk 0:00:18.1]} 71...
f5 {[%clk 0:00:20.1]} 72. Qc7+ {[%clk 0:00:17.2]} 72... Kg6 {[%clk 0:00:18.8]}
73. Qg3+ {[%clk 0:00:16.6]} 73... Kf7 {[%clk 0:00:17]} 74. Qg5 {[%clk
0:00:16.3]} 74... Qg4 {[%clk 0:00:15.6]} 75. Qe7+ {[%clk 0:00:15.2]} 75... Kg6
{[%clk 0:00:14.2]} 76. Qd6+ {[%clk 0:00:14.1]} 76... Kh7 {[%clk 0:00:12.9]} 77.
Qe7+ {[%clk 0:00:13.6]} 77... Kg6 {[%clk 0:00:12.8]} 78. Qe8+ {[%clk 0:00:12.5]}
78... Kh7 {[%clk 0:00:11.9]} 79. Qe7+ {[%clk 0:00:11.5]} 79... Kg6 {[%clk
0:00:11.8]} 1/2-1/2

[Event "Live Chess"]
[Site "Chess.com"]
[Date "2023.05.21"]
[Round "-"]
[White "SupremeTactician"]
[Black "McSlash1"]
[Result "1-0"]
[WhiteElo "2199"]
[BlackElo "2005"]
[TimeControl "300"]
[EndTime "7:37:18 PDT"]
[Termination "SupremeTactician won by resignation"]

1. e4 {[%clk 0:04:59.8]} 1... c5 {[%clk 0:04:59]} 2. Nf3 {[%clk 0:04:57.7]} 2...
d6 {[%clk 0:04:58.5]} 3. d4 {[%clk 0:04:56.4]} 3... cxd4 {[%clk 0:04:58.4]} 4.
Nxd4 {[%clk 0:04:56.3]} 4... Nf6 {[%clk 0:04:58]} 5. f3 {[%clk 0:04:56]} 5... g6
{[%clk 0:04:56.9]} 6. c4 {[%clk 0:04:55.4]} 6... Bg7 {[%clk 0:04:56.6]} 7. Nc3
{[%clk 0:04:54.6]} 7... O-O {[%clk 0:04:56.5]} 8. Be3 {[%clk 0:04:54]} 8... Nc6
{[%clk 0:04:56.4]} 9. Qd2 {[%clk 0:04:53.2]} 9... Nd7 {[%clk 0:04:56.3]} 10.
Nxc6 {[%clk 0:04:52.4]} 10... bxc6 {[%clk 0:04:55.4]} 11. Be2 {[%clk 0:04:52.2]}
11... Ne5 {[%clk 0:04:54.6]} 12. O-O {[%clk 0:04:51.4]} 12... Be6 {[%clk
0:04:54.2]} 13. b3 {[%clk 0:04:49.8]} 13... Qa5 {[%clk 0:04:52.3]} 14. Rac1
{[%clk 0:04:49.1]} 14... Nd7 {[%clk 0:04:49.3]} 15. Rfd1 {[%clk 0:04:47.7]}
15... Nc5 {[%clk 0:04:45.1]} 16. Nd5 {[%clk 0:04:42]} 16... Qxd2 {[%clk
0:04:38]} 17. Nxe7+ {[%clk 0:04:40.8]} 17... Kh8 {[%clk 0:04:36.4]} 18. Rxd2
{[%clk 0:04:40.1]} 18... Bd7 {[%clk 0:04:04.1]} 19. Bxc5 {[%clk 0:04:38.6]}
19... dxc5 {[%clk 0:04:00.6]} 20. Rxd7 {[%clk 0:04:37.5]} 1-0

[Event "Live Chess"]
[Site "Chess.com"]
[Date "2023.05.21"]
[Round "-"]
[White "lHolyDiverl"]
[Black "diana21strabt"]
[Result "0-1"]
[WhiteElo "555"]
[BlackElo "1742"]
[TimeControl "300"]
[EndTime "7:37:19 PDT"]
[Termination "diana21strabt won by resignation"]

1. d3 {[%clk 0:04:54.6]} 1... Nf6 {[%clk 0:04:58.8]} 2. e4 {[%clk 0:04:53.2]}
2... d5 {[%clk 0:04:57.4]} 3. Be3 {[%clk 0:04:38]} 3... dxe4 {[%clk 0:04:55.6]}
4. dxe4 {[%clk 0:04:35]} 4... Qxd1+ {[%clk 0:04:54.3]} 5. Kxd1 {[%clk
0:04:34.7]} 5... Nxe4 {[%clk 0:04:53]} 6. Nd2 {[%clk 0:04:29.5]} 6... Nxd2
{[%clk 0:04:51.8]} 7. Bxd2 {[%clk 0:04:28.4]} 7... Bd7 {[%clk 0:04:51]} 8. Nf3
{[%clk 0:04:20.1]} 8... Nc6 {[%clk 0:04:49]} 9. Bc4 {[%clk 0:04:15.3]} 9... e6
{[%clk 0:04:47.1]} 10. Kc1 {[%clk 0:04:02.3]} 10... Bc5 {[%clk 0:04:39.1]} 11.
Be3 {[%clk 0:03:50.5]} 11... Bxe3+ {[%clk 0:04:37.2]} 12. fxe3 {[%clk
0:03:49.9]} 12... Na5 {[%clk 0:04:35.5]} 13. Bd3 {[%clk 0:03:37.1]} 13... O-O-O
{[%clk 0:04:33.1]} 14. Ne5 {[%clk 0:03:32.1]} 14... Be8 {[%clk 0:04:28.6]} 15.
b3 {[%clk 0:03:26.7]} 15... f6 {[%clk 0:04:26]} 16. Nc4 {[%clk 0:03:15.1]} 16...
Nxc4 {[%clk 0:04:24.7]} 17. Bxc4 {[%clk 0:03:14.5]} 17... e5 {[%clk 0:04:22.4]}
18. Kb2 {[%clk 0:03:13.5]} 18... Bc6 {[%clk 0:04:21.2]} 19. Rhg1 {[%clk
0:03:07.5]} 19... Rd2 {[%clk 0:04:19.6]} 20. Rad1 {[%clk 0:02:38.5]} 20... Rhd8
{[%clk 0:04:15.6]} 21. Be6+ {[%clk 0:02:02.9]} 21... Kb8 {[%clk 0:04:11.4]} 22.
Bh3 {[%clk 0:01:30.7]} 22... Rxd1 {[%clk 0:04:07.2]} 0-1

[Event "Live Chess"]
[Site "Chess.com"]
[Date "2023.05.21"]
[Round "-"]
[White "defenderalist"]
[Black "Biranidun"]
[Result "0-1"]
[WhiteElo "1641"]
[BlackElo "2519"]
[TimeControl "300"]
[EndTime "7:37:34 PDT"]
[Termination "Biranidun won by resignation"]

1. e4 {[%clk 0:04:59.3]} 1... c5 {[%clk 0:04:58.6]} 2. Nf3 {[%clk 0:04:56.6]}
2... d6 {[%clk 0:04:58.1]} 3. d4 {[%clk 0:04:56.1]} 3... cxd4 {[%clk 0:04:58]}
4. Nxd4 {[%clk 0:04:55.7]} 4... Nf6 {[%clk 0:04:57.7]} 5. Nc3 {[%clk 0:04:54.3]}
5... g6 {[%clk 0:04:57.4]} 6. Bd3 {[%clk 0:04:52.6]} 6... Bg7 {[%clk 0:04:56.7]}
7. O-O {[%clk 0:04:51.5]} 7... O-O {[%clk 0:04:55.8]} 8. Nde2 {[%clk 0:04:49.9]}
8... Nc6 {[%clk 0:04:55.2]} 9. f4 {[%clk 0:04:48.4]} 9... Be6 {[%clk 0:04:51.8]}
10. Kh1 {[%clk 0:04:44.6]} 10... Rc8 {[%clk 0:04:50.5]} 11. a3 {[%clk
0:04:42.7]} 11... Na5 {[%clk 0:04:48.7]} 12. f5 {[%clk 0:04:39.1]} 12... Bc4
{[%clk 0:04:45.1]} 13. Bxc4 {[%clk 0:04:31.2]} 13... Nxc4 {[%clk 0:04:44]} 14.
b3 {[%clk 0:04:23.5]} 14... Ne5 {[%clk 0:04:43.1]} 15. Bg5 {[%clk 0:04:17.7]}
15... Qc7 {[%clk 0:04:32]} 16. h3 {[%clk 0:04:07.7]} 16... Qc6 {[%clk
0:04:27.9]} 17. Rc1 {[%clk 0:04:01.7]} 17... Nxe4 {[%clk 0:04:24.5]} 18. Nxe4
{[%clk 0:03:55.8]} 18... Qxe4 {[%clk 0:04:24.4]} 19. fxg6 {[%clk 0:03:44.4]}
19... hxg6 {[%clk 0:04:22.8]} 20. Bxe7 {[%clk 0:03:42.6]} 20... Rfe8 {[%clk
0:04:21.7]} 21. Bxd6 {[%clk 0:03:40]} 21... Rcd8 {[%clk 0:04:20.8]} 22. Bxe5
{[%clk 0:03:38.6]} 22... Rxd1 {[%clk 0:04:19.3]} 23. Rcxd1 {[%clk 0:03:35.3]}
23... Qxe2 {[%clk 0:04:18.5]} 24. Bxg7 {[%clk 0:03:30.5]} 24... Kxg7 {[%clk
0:04:18.4]} 25. Rc1 {[%clk 0:03:22.1]} 25... Re5 {[%clk 0:04:13.9]} 0-1